Cogmind - Beta 15 *** ADVENTURER MODE // 2025.05.23 @ 08:21:26 Player: DeepestRoots Result: Self-destructed Performance ------------- Evolutions (1) 500 Regions Visited (2) 400 Robots Destroyed (43) 215 Value Destroyed (1234) 1234 Prototype IDs (0) 0 Alien Tech Used (0) 0 Bonus (0) 0 TOTAL SCORE: 2349 Bonus ------- None Cogmind --------- Core Integrity 284/400 Matter 300/300 Energy 265/265 System Corruption 1% Temperature Cool (0) Movement Treading (160) Location -9/Materials Parts ------- > --- POWER (1) -------- Improved Ion Engine > --- PROPULSION (3) --- Light Treads Light Treads Light Treads > --- UTILITY (3) ------ Heat Sink Large Storage Unit Light Armor Plating > --- WEAPON (2) ------- Particle Cannon Heavy Assault Rifle > --- INVENTORY (15) --- Ion Engine Improved Ion Engine Light Treads Light Treads Light Treads Heat Sink Medium Matter Pod (100) Structural Scanner Tractor Beam Light Assault Rifle Heavy Assault Rifle Grenade Launcher Grenade Launcher Grenade Launcher Peak State ------------ > --- POWER ------------ Improved Ion Engine > --- PROPULSION ------- Light Treads Light Treads Wheel > --- UTILITY ---------- Heat Sink Large Storage Unit Hardened Light Armor Plating > --- WEAPON ----------- Particle Cannon Heavy Assault Rifle > --- INVENTORY -------- Ion Engine Ion Engine Heat Sink Heat Sink Heat Sink Small Matter Pod Structural Scanner Tractor Beam Light Assault Rifle Grenade Launcher Grenade Launcher Grenade Launcher [Rating: 14] Favorites ----------- Power Ion Engine Engine Ion Engine Propulsion Light Treads Treads Light Treads Wheel Wheel Utility Heat Sink Device Heat Sink Storage Small Storage Unit Protection Medium Armor Plating Weapon Light Assault Rifle Energy Gun Medium Laser Energy Cannon Particle Cannon Ballistic Gun Light Assault Rifle Launcher Grenade Launcher Build | -11 -10 -9 ------- Run | Yrd Mat Mat Slots Evolved 2 | . . 2 Power . | . . . Propulsion 1 | . . 1 Utility 1 | . . 1 Weapon . | . . . Parts Attached 31 | 6 2 23 Power 4 | 1 . 3 Engine 4 | 1 . 3 Core . | . . . Reactor . | . . . Propulsion 9 | 2 . 7 Treads 8 | 2 . 6 Leg . | . . . Wheel 1 | . . 1 Hover . | . . . Flight . | . . . Utility 11 | 1 2 8 Device 5 | . 2 3 Storage 2 | 1 . 1 Processor . | . . . Hackware . | . . . Protection 4 | . . 4 Artifact . | . . . Weapon 7 | 2 . 5 Energy Gun 1 | 1 . . Energy Cannon 1 | . . 1 Ballistic Gun 2 | 1 . 1 Ballistic Cannon . | . . . Launcher 3 | . . 3 Special Weapon . | . . . Impact Weapon . | . . . Slashing Weapon . | . . . Piercing Weapon . | . . . Special Melee Weapon . | . . . Unidentified Prototypes . | . . . Parts Lost 3 | . . 3 Power . | . . . Propulsion 2 | . . 2 Utility 1 | . . 1 Weapon . | . . . Highest Loss Streak 1 | . . 1 To Critical Strikes . | . . . Average Backups 7 | . 3 12 Power . | . . 1 Propulsion . | . . 1 Utility 3 | . 1 5 Weapon 2 | . 1 3 Tool/Special . | . . . Unused Backups 6 | . . 6 Power 2 | . . 2 Propulsion . | . . . Utility 3 | . . 3 Weapon 1 | . . 1 Tool/Special . | . . . Average Slot Usage (%) 94 | . 96 93 Engine 12 | . 14 11 Treads 26 | . 28 25 Wheel 2 | . . 4 Device 10 | . 10 10 Storage 12 | . 14 11 Protection 3 | . . 7 Energy Gun 7 | . 14 . Energy Cannon 4 | . . 10 Ballistic Gun 12 | . 14 10 Peak Build Rating 14 | 6 7 14 Average Rating 9 | 3 6 11 On Entrance 4 | . 6 7 Naked Turns . | . . . Heaviest Build 42 | 13 14 42 Greatest Support 60 | 40 40 60 Greatest Overweight (x) 4 | . . 4 Average Overweight (x) . | . . . Largest Inventory Capacity 15 | 8 8 15 Average Capacity 10 | 6 8 13 Most Carried 15 | . 7 15 Average Carried 7 | . 3 12 Final Capacity 15 | 8 8 15 Final Carried 14 | . 7 14 Class Distribution -------------------- 71% | Mutant 28% | Scavenger-Mutant Dominant Class ---------------- Mutant | -10/Materials Scavenger-Mutant | -9/Materials Resources | -11 -10 -9 ----------- Run | Yrd Mat Mat Matter Collected 946 | 157 197 592 Remotely . | . . . Salvage Created 1473 | . 318 1155 Parts 110 | . 23 87 Haulers Intercepted . | . . . Recyclers Shooed 2 | . . 2 Parts Field Recycled . | . . . Retrieved Matter . | . . . Parts Self-Destructed . | . . . Prevented . | . . . Kills | -11 -10 -9 ------- Run | Yrd Mat Mat Combat Hostiles Destroyed 38 | . 9 29 Guns 19 | . 9 10 Cannons 10 | . . 10 AOE 9 | . . 9 Classes Destroyed 8 | . 2 6 Worker 1 | . . 1 Builder 1 | . . 1 Recycler 2 | . . 2 Operator 1 | . . 1 Swarmer 11 | . 3 8 Grunt 19 | . 6 13 Duelist 1 | . . 1 Sentry 7 | . . 7 Best Kill Streak 5 | . 3 5 Combat Bots Only 4 | . 3 4 Max Kills in Single Turn 4 | . 1 4 Gunslinging . | . . . Exploded 3 | . . 3 Melee . | . . . Uniques/NPCs Destroyed . | . . . Combat | -11 -10 -9 -------- Run | Yrd Mat Mat Hostile Shots Fired 140 | . 35 105 Missed 33 | . 9 24 Hits 107 | . 26 81 Melee 6 | . . 6 Projectile 101 | . 26 75 Critical Strikes 3 | . 1 2 Damage Taken 1141 | . 252 889 Core 152 | . 36 116 Absorbed by Shields . | . . . Ignored by Resistances 334 | . 75 259 Core Remaining (%) 92 | 100 85 . Volleys Fired 94 | . 24 70 Largest 2 | . 2 2 Hottest 91 | . 70 91 Shots Fired 175 | . 48 127 Gun 118 | . 48 70 Cannon 50 | . . 50 Launcher 7 | . . 7 Special . | . . . Kinetic 81 | . 24 57 Thermal 87 | . 24 63 Explosive 7 | . . 7 Electromagnetic . | . . . Robot Hit Streak 31 | . 11 31 Robot Miss Streak 3 | . 3 2 Penetration Max . | . . . Secondary Targets . | . . . Shots Hit Robots 132 | . 36 96 Core Hits 72 | . 19 53 Critical Kills . | . . . Critical Parts Destroyed . | . . . Critical Strikes . | . . . Melee Attacks . | . . . Impact . | . . . Slashing . | . . . Piercing . | . . . Sneak Attacks . | . . . Combat Hostiles . | . . . Follow-up Attacks . | . . . Damage Inflicted 2416 | . 375 2041 Guns 1111 | . 372 739 Cannons 657 | . . 657 Explosions 645 | . . 645 Melee . | . . . Ramming 3 | . 3 . Kinetic 752 | . 148 604 Thermal 1016 | . 224 792 Explosive 645 | . . 645 Electromagnetic . | . . . Impact . | . . . Slashing . | . . . Piercing . | . . . Highest Corruption 1 | . . 1 Average Corruption 1 | . . 1 Corruption Purged . | . . . Corruption Blocked . | . . . Effects 5 | . . 5 Heat Flow Errors 1 | . . 1 Energy Discharges 1 | . . 1 Data Loss (minor) 2 | . . 2 Data Loss (major) 1 | . . 1 Overload Shots . | . . . Overflow Damage 1 | . . 1 Projectiles . | . . . Explosions 1 | . . 1 Melee . | . . . Knockbacks . | . . . Impact . | . . . Kinetic . | . . . Secondary . | . . . Self-Inflicted Damage 24 | . . 24 Shots 1 | . . 1 Rammed 1 | . 1 . Targets Rammed 1 | . 1 . Kicked . | . . . Crushed . | . . . Highest Temperature 214 | . 50 214 Average Temperature 21 | . 17 22 Received Heat Transfer 501 | . 165 336 Siege Activations . | . . . Martial Activations . | . . . Shielding Activations . | . . . Robots Disrupted . | . . . Combat Hostiles . | . . . Robots Corrupted . | . . . Combat Hostiles . | . . . Parts Fried . | . . . Impact Corruptions . | . . . Robots Melted . | . . . Combat Hostiles . | . . . Parts Melted 2 | . 1 1 Heat Transferred 2257 | . 666 1591 Parts Sabotaged . | . . . Parts Stolen . | . . . Parts Stripped . | . . . Power Chain Reactions . | . . . Alert | -11 -10 -9 ------- Run | Yrd Mat Mat Maximum Alert Level 1 | . . 1 Low Security (%) 98 | 100 100 96 Level 1 1 | . . 3 Level 2 . | . . . Level 3 . | . . . Level 4 . | . . . Level 5 . | . . . High Security . | . . . Max Security . | . . . Peak Influence 205 | . 80 205 Initial . | . . . Average 37 | . 8 69 Influence Increases 1048 | . 220 828 Destroy 0b10 Robot/C 760 | . 180 580 Destroy 0b10 Robot/NC 25 | . . 25 Destroy Leader 180 | . 40 140 Successful Hack 1 | . . 1 Disable Machine 27 | . . 27 Destroy Structure 40 | . . 40 Lose Combat Pursuer 15 | . . 15 Influence Decreases 1044 | . 220 824 Time Decay 864 | . 220 644 Lost Part 30 | . . 30 Purge Threat 150 | . . 150 Squads Dispatched 3 | . . 3 Investigation 2 | . . 2 Extermination . | . . . Reinforcement 1 | . . 1 Assault . | . . . Garrison . | . . . Intercept . | . . . Searches Triggered . | . . . Construction Impeded . | . . . Haulers Reinforced . | . . . Active Scanning Responses . | . . . Cargo Convoy Interrupts . | . . . Stealth | -11 -10 -9 --------- Run | Yrd Mat Mat Distress Signals 5 | . 1 4 Communications Jammed . | . . . Distress Signals . | . . . Times Spotted 56 | . 18 38 Peak Tracking Total 5 | . 5 5 Tactical Retreats 1 | . . 1 Traps | -11 -10 -9 ------- Run | Yrd Mat Mat Traps Triggered 3 | . 1 2 Indirectly . | . . . Trap Hack Attempts . | . . . Triggered . | . . . Disarmed . | . . . Reprogrammed . | . . . Reused . | . . . Traps Extracted . | . . . Installed . | . . . Triggered . | . . . Machines | -11 -10 -9 ---------- Run | Yrd Mat Mat Machines Disabled 3 | . . 3 Max in Single Turn 1 | . . 1 Machines Repaired . | . . . Machines Dismantled . | . . . Machines Sabotaged . | . . . Overloaded Fab Kills . | . . . Hacking | -11 -10 -9 --------- Run | Yrd Mat Mat Machines Accessed 3 | . . 3 Terminals 2 | . . 2 Fabricators . | . . . Repair Stations 1 | . . 1 Recycling Units . | . . . Scanalyzers . | . . . Garrison Access . | . . . Total Hacks 6 | . . 6 Successful 3 | . . 3 Failed 3 | . . 3 Catastrophic . | . . . Database Lockouts . | . . . Manual . | . . . Terminals 3 | . . 3 Fabricators . | . . . Repair Stations 3 | . . 3 Recycling Units . | . . . Scanalyzers . | . . . Garrison Access . | . . . Terminal Hacks 2 | . . 2 Unreport Threat 1 | . . 1 Locate Traps 1 | . . 1 Fabricator Hacks . | . . . Repair Station Hacks 1 | . . 1 Scan Component 1 | . . 1 Recycling Unit Hacks . | . . . Scanalyzer . | . . . Garrison Access Hacks . | . . . Unauthorized Hacks . | . . . Terminals . | . . . Fabricators . | . . . Repair Stations . | . . . Recycling Units . | . . . Scanalyzers . | . . . Garrison Access . | . . . Data Cores Recovered . | . . . Used . | . . . Hacking Detections 2 | . . 2 Full Trace Events 1 | . . 1 Feedback Events . | . . . Feedback Blocked . | . . . Robot Schematics Acquired . | . . . Robots Built . | . . . Authchips . | . . . Time . | . . . Total Robot Build Rating . | . . . Part Schematics Acquired . | . . . Parts Built . | . . . Authchips . | . . . Time . | . . . Total Part Build Rating . | . . . Parts Repaired . | . . . Time . | . . . Parts Recycled . | . . . Recycled Matter . | . . . Retrieved Matter . | . . . Retrieved Components . | . . . Parts Scanalyzed . | . . . Part Schematics Acquired . | . . . Parts Damaged . | . . . Bothacking | -11 -10 -9 ------------ Run | Yrd Mat Mat Used RIF Installer . | . . . Robots Hacked . | . . . Non-combat . | . . . Combat . | . . . Robot Hacks Applied . | . . . Relay Couplers Released . | . . . Fabnet Peak Effective % . | . . . Robots Rewired . | . . . Allies Hacked . | . . . Hacks Repelled . | . . . Allies | -11 -10 -9 -------- Run | Yrd Mat Mat Total Allies . | . . . Largest Group . | . . . Highest-Rated Group . | . . . Highest-Rated Ally . | . . . Total Orders . | . . . Ally Attacks . | . . . Total Damage . | . . . Kills . | . . . Allies Corrupted . | . . . Allies Melted . | . . . Intel | -11 -10 -9 ------- Run | Yrd Mat Mat Active Infowar (turns) . | . . . Robot Analysis Total . | . . . Derelict Logs Recovered . | . . . Drone Launches . | . . . Drone Recoveries . | . . . Exploration | -11 -10 -9 ------------- Run | Yrd Mat Mat Turns Passed 3133 | 91 1553 1489 Spaces Moved 1414 | 83 753 578 Core 45 | 45 . . Treads 1323 | 38 753 532 Legs . | . . . Wheels 46 | . . 46 Hover . | . . . Flight . | . . . Fastest Speed 50 | 50 160 125 Average Speed 162 | 100 160 174 Slowest Speed 240 | 160 160 240 Overloaded Moves . | . . . Propulsion Burnouts . | . . . Robots Hopped . | . . . Potential Cave-ins . | . . . Cave-ins Triggered . | . . . Exploration Rate (%) 46 | 3 88 49 Regions Visited 2 Branch Regions . Pre-discovered Areas . | . . . Known Exits Taken . | . . . Unknown Exits Taken 2 | 1 1 . Scrap Searched . | . . . Spaces Dug 8 | . . 8 Terrain Destroyed 38 | . . 38 Melee . | . . . Projectile . | . . . AOE 38 | . . 38 Terrain Rammed . | . . . Walls Destroyed . | . . . Machines Disabled . | . . . Actions | -11 -10 -9 --------- Run | Yrd Mat Mat Total 2077 | 88 1057 932 Wait 507 | . 272 235 Move 1412 | 82 752 578 Hop . | . . . Pick Up 13 | . 6 7 Fast Attach 11 | 6 1 4 Attach 2 | . . 2 Detach . | . . . Swap 26 | . 1 25 Drop 11 | . . 11 Fire 94 | . 24 70 Melee . | . . . Ram . | . . . Kick . | . . . Crush 1 | . 1 . Escape Stasis . | . . . Rewire . | . . . Trap . | . . . Miscellaneous . | . . . Route ------- -11/Scrapyard -10/Materials (discovered 5 exits: *Mat x2 / [*Min x2] / [*Sub]) -9/Materials (discovered 4 exits: [*Mat] / [*Min x2] / [*Sto]) History --------- Turn | Location | Event 3 | -11/Scrapyard | Discovered new exit (range 16) 92 | -11/Scrapyard | Entered Materials 93 | -10/Materials | Met a group of wandering Federalists 223 | -10/Materials | Discovered new exit (range 8) 302 | -10/Materials | Build established: Mutant 415 | -10/Materials | Discovered new exit (range 5) 831 | -10/Materials | Discovered new exit (range 15) 1240 | -10/Materials | Discovered new exit (range 3) 1619 | -10/Materials | Discovered new exit (range 11) 1645 | -10/Materials | Entered another Materials area 1645 | -9/Materials | Evolved 2 slots: Propulsion x1, Utility x1 1963 | -9/Materials | Discovered new exit (range 16) 2194 | -9/Materials | Discovered new exit (range 12) 2510 | -9/Materials | Discovered new exit (range 16) 2528 | -9/Materials | Build established: Scavenger-Mutant 2567 | -9/Materials | Discovered new exit (range 16) 3134 | -9/Materials | Self-destructed Last Messages --------------- 02992_ Dropped Heat Sink. 02997_ Dropped Lgt. Armor Plating. 02998_ W-16 Scout distress signal alerts nearby ally. 02998_ Acquired 20 matter. 03023_ Lgt. Treads destroyed. 03028_ G-47 Trooper destroyed. 03031_ G-34 Mercenary destroyed. 03036_ Acquired 22 matter. 03037_ Acquired 24 matter. 03059_ System corrupted: Component data lost. 03087_ Acquired Med. Matter Pod. 03088_ Dropped Sml. Matter Pod. 03089_ Extracted 50 matter. 03089_ K-01 Serf collects debris. 03097_ Acquired 21 matter. 03115_ Acquired 11 matter. 03129_ Acquired 18 matter. 03131_ System corrupted: Substantial component data lost. Map ----- +----------------------------------------------------+ | ?????????????????????????????????????????????????? | | ?????????????????????????????????????????????????? | | ?????????????????????????????????????????????????? | | ?????????????????????????????????????????????????? | | ?????????????????????????????????????????????????? | | ?????????????????????????????????????????????????? | | ?????????????????????????????????????????????????? | | ????????????????????????????#????????????????????? | | ???????????????????????????? ##???????????? ???? | | ??????????????????????????? #???????????+ #??? | | ???????????????????????????? #???????????# #??? | | ?????????????????????????? =#???????????# #### | | ??????????????????????# ?" | #???????????# # | | ??????????????????????# #???????????# # "" | | ??????????????????????# """" #???????????# # "" | | ??????????????????????# """" #???????????# # "" | | ??????????????????????# """" #???????????# # | | ??????????????????????# #########???# # | | ????############??????# #"""""""#???# # | | ????# ######## #" !"! "#???# # | | ?????# "" """ # #######+##" "##### #### | | ?????# "T """ # ! ^ | | ?????# "" """ +! < [ < ^ | | ?????# # ! % | | ?????# # #######+## #######+#### | | ?????# ## ###==@k #########?# T [%* # | | ?????# ## #?#%*""" #?????????# = # | | ?????############ ###! "" #?????????# # | | ????????????????# +=!["" #?????????# """ # | | ????????????????# ###% """ #?????????# """ # | | ????????##########+####*! #?????????# """ # | | ????????# #*= "" #?????????# """ # | | ????????#!* # """ #?????????#! """ # | | ????????# * # """ #?????????# # | | ????????# # """ #?????????### ?##### | | ????????# ! # #????????????#?????? | | ????????# #########??????????????????? | | ????????########## ####??????????????????????????? | | ?????????????????###?????????????????????????????? | | ??????????????????????????????#??????"???????????? | | ??????????????????????????????# ???""???????????? | | ??????????????????????????????# ?? ???????????? | | ????????????########??????????# """ ??????????? | | ????????????#!!!!!!#??????????# """ ??????????? | | ????????????#!!!!!!#??????????# """ ??????????? | | ????????????# #???????????? #?????????# | | ############# #############+################# | | % ! | | *= " !* % | | =% !%[% [ !% * | +----------------------------------------------------+ Best States ------------- Heat Dissipation 48 Energy Generation 12 Energy Capacity 265 Matter Stores 300 Matter Capacity 300 Sight Range 16 Terrain Scan Density 10 Armor Coverage 225 Resistance: KI 20 Resistance: TH 20 Resistance: EX 20 Resistance: EM 20 Resistance: I 20 Resistance: S 20 Resistance: P 20 Evasion (%) 50 Recoil Reduction 3 Offensive Hacking 10 Item Schematics ----------------- None Robot Schematics ------------------ None Fabricated ------------ Nothing Repaired ---------- Nothing Alien Tech Used ----------------- None Achievements -------------- None Challenges ------------ None Game ------ Seed SmartbombSalvagingRay Manual? 1 Play Time 00:44:34 Cumulative 1173.1 hours Start 2025.05.23 @ 07:22:16 End 2025.05.23 @ 08:21:26 Sessions 9 Manual Loads 0 Difficulty Adventurer Special Mode None Game No. 93 Rogue 22 Adventurer 57 Explorer 14 Win Type - Total 57 Types 27/5/10/1/3/2/1/3/2/3 Lore% 90 Gallery% 94 Achievement% 82 Wizard Run 0 Options --------- Layout 2 ASCII 1 Keyboard 1 Movement Numpad Keybinds 0 Fullscreen 2 Font 24/Smallcaps Map View 50x44 Zoom Use 0% Tactical HUD 1 Map Filters NONE Filters NONE Steam 0 RUN: 086f8350-4c84-4039-bd26-9c8cb53b8644